[Event "*** Titled Tuesday Blitz"]
[Site "Chess.com"]
[Date "2020.12.29"]
[Round "11"]
[White "Ave_Mariia"]
[Black "Vusatiuk_Vladimir"]
[Result "1-0"]
[WhiteElo "2473"]
[BlackElo "2303"]
[TimeControl "180+1"]
[EndTime "12:06:05 PST"]
[Termination "Ave_Mariia won by checkmate"]

1. d4 {[%clk 0:03:00.9]} 1... Nf6 {[%clk 0:02:59.6]} 2. c4 {[%clk 0:03:01.1]}
2... e6 {[%clk 0:02:59.9]} 3. g3 {[%clk 0:03:00.2]} 3... c5 {[%clk 0:02:59.2]}
4. d5 {[%clk 0:02:59.5]} 4... exd5 {[%clk 0:02:59.4]} 5. cxd5 {[%clk 0:03:00.4]}
5... d6 {[%clk 0:03:00]} 6. Nc3 {[%clk 0:02:59.4]} 6... g6 {[%clk 0:02:57.6]} 7.
Nf3 {[%clk 0:02:59.2]} 7... Bg7 {[%clk 0:02:58]} 8. Bg2 {[%clk 0:02:59.6]} 8...
O-O {[%clk 0:02:58.3]} 9. O-O {[%clk 0:02:59.9]} 9... Nbd7 {[%clk 0:02:55.8]}
10. Bf4 {[%clk 0:02:56.9]} 10... Qe7 {[%clk 0:02:39.3]} 11. Rb1 {[%clk
0:02:41.2]} 11... Nh5 {[%clk 0:02:12.6]} 12. Bg5 {[%clk 0:02:40.8]} 12... f6
{[%clk 0:02:12.9]} 13. Bd2 {[%clk 0:02:38.7]} 13... f5 {[%clk 0:02:13.2]} 14. b4
{[%clk 0:02:34.6]} 14... cxb4 {[%clk 0:01:56.5]} 15. Rxb4 {[%clk 0:02:34.7]}
15... Nc5 {[%clk 0:01:57]} 16. Qc2 {[%clk 0:01:24.2]} 16... Nf6 {[%clk
0:01:46.7]} 17. Bg5 {[%clk 0:01:20.1]} 17... h6 {[%clk 0:01:43.7]} 18. Be3
{[%clk 0:01:18.1]} 18... Nfe4 {[%clk 0:01:29.3]} 19. Nd4 {[%clk 0:01:14.4]}
19... g5 {[%clk 0:01:07.3]} 20. Nxe4 {[%clk 0:01:11.1]} 20... Nxe4 {[%clk
0:01:08.2]} 21. Nxf5 {[%clk 0:01:05.6]} 21... Bxf5 {[%clk 0:00:59.5]} 22. Bxe4
{[%clk 0:01:05.6]} 22... a5 {[%clk 0:00:49.8]} 23. Rc4 {[%clk 0:01:01]} 23... b5
{[%clk 0:00:47.9]} 24. Bxf5 {[%clk 0:00:59.9]} 24... bxc4 {[%clk 0:00:48]} 25.
Be6+ {[%clk 0:00:59.2]} 25... Kh8 {[%clk 0:00:48.5]} 26. Qxc4 {[%clk 0:00:56.4]}
26... Rfb8 {[%clk 0:00:29.9]} 27. Qc6 {[%clk 0:00:36.6]} 27... Rd8 {[%clk
0:00:19.3]} 28. Rc1 {[%clk 0:00:32.4]} 28... Rab8 {[%clk 0:00:17.2]} 29. Qa6
{[%clk 0:00:28.8]} 29... Ra8 {[%clk 0:00:15.8]} 30. Qd3 {[%clk 0:00:27]} 30...
Rab8 {[%clk 0:00:15.1]} 31. Rc6 {[%clk 0:00:23.7]} 31... Rb2 {[%clk 0:00:14.6]}
32. Bb6 {[%clk 0:00:20.9]} 32... Rb8 {[%clk 0:00:14.9]} 33. Rc7 {[%clk 0:00:19]}
33... Qf6 {[%clk 0:00:10.7]} 34. Rxg7 {[%clk 0:00:19.1]} 34... Qxg7 {[%clk
0:00:05.8]} 35. Bd4 {[%clk 0:00:19.7]} 35... Rb1+ {[%clk 0:00:06.5]} 36. Kg2
{[%clk 0:00:19.5]} 36... R1b7 {[%clk 0:00:03.1]} 37. Bxg7+ {[%clk 0:00:19.5]}
37... Kxg7 {[%clk 0:00:04]} 38. Qf5 {[%clk 0:00:19.2]} 38... Rf8 {[%clk
0:00:04.2]} 39. Qd3 {[%clk 0:00:18.9]} 39... Rb4 {[%clk 0:00:04]} 40. Qc3+
{[%clk 0:00:18.8]} 40... Kg6 {[%clk 0:00:03]} 41. Qc7 {[%clk 0:00:17.5]} 41...
Rf6 {[%clk 0:00:02.2]} 42. Qxd6 {[%clk 0:00:17.3]} 42... Ra4 {[%clk 0:00:02.2]}
43. Qd7 {[%clk 0:00:16.8]} 43... Rxa2 {[%clk 0:00:01.6]} 44. Qe8+ {[%clk
0:00:16.2]} 44... Kg7 {[%clk 0:00:01.5]} 45. Qg8# {[%clk 0:00:15.9]} 1-0

[Event "*** Titled Tuesday Blitz"]
[Site "Chess.com"]
[Date "2020.12.29"]
[Round "11"]
[White "DinaBelenkaya"]
[Black "akhairat"]
[Result "0-1"]
[WhiteElo "2363"]
[BlackElo "2413"]
[TimeControl "180+1"]
[EndTime "12:06:06 PST"]
[Termination "akhairat won on time"]

1. e4 {[%clk 0:03:00.9]} 1... e5 {[%clk 0:03:00]} 2. Nf3 {[%clk 0:03:00]} 2...
Nc6 {[%clk 0:03:00.3]} 3. d4 {[%clk 0:02:57.7]} 3... exd4 {[%clk 0:02:59.7]} 4.
Nxd4 {[%clk 0:02:58.6]} 4... Bc5 {[%clk 0:02:59.2]} 5. Nb3 {[%clk 0:02:56.7]}
5... Bb6 {[%clk 0:02:59.1]} 6. Nc3 {[%clk 0:02:55.8]} 6... Nf6 {[%clk
0:02:56.2]} 7. a4 {[%clk 0:02:53.6]} 7... a5 {[%clk 0:02:55.7]} 8. Bg5 {[%clk
0:02:51.7]} 8... h6 {[%clk 0:02:53.9]} 9. Bh4 {[%clk 0:02:50.8]} 9... g5 {[%clk
0:02:47.8]} 10. Bg3 {[%clk 0:02:48.9]} 10... d6 {[%clk 0:02:47.8]} 11. Qe2
{[%clk 0:02:47]} 11... Be6 {[%clk 0:02:43.9]} 12. O-O-O {[%clk 0:02:45.9]} 12...
Bxb3 {[%clk 0:02:42.5]} 13. cxb3 {[%clk 0:02:45.4]} 13... Qe7 {[%clk 0:02:43.4]}
14. Nd5 {[%clk 0:01:46.3]} 14... Nxd5 {[%clk 0:02:32.7]} 15. Rxd5 {[%clk
0:01:47.2]} 15... Nb4 {[%clk 0:02:28.1]} 16. Rf5 {[%clk 0:01:36]} 16... O-O-O
{[%clk 0:02:17]} 17. Qf3 {[%clk 0:01:33.6]} 17... Rhe8 {[%clk 0:02:10.1]} 18.
Rxf7 {[%clk 0:01:01.8]} 18... Qxe4 {[%clk 0:02:00.5]} 19. Qxe4 {[%clk
0:01:02.6]} 19... Rxe4 {[%clk 0:02:01]} 20. f3 {[%clk 0:00:42.4]} 20... Re3
{[%clk 0:01:47.7]} 21. Bf2 {[%clk 0:00:16.9]} 21... Rxb3 {[%clk 0:01:42.4]} 22.
Bxb6 {[%clk 0:00:17.8]} 22... cxb6 {[%clk 0:01:41.4]} 23. Be2 {[%clk 0:00:18.1]}
23... Kb8 {[%clk 0:01:38.8]} 24. Kb1 {[%clk 0:00:16.3]} 24... Re8 {[%clk
0:01:34.1]} 25. Bb5 {[%clk 0:00:15.4]} 25... Re5 {[%clk 0:01:21.8]} 26. Rc1
{[%clk 0:00:15.2]} 26... Rbe3 {[%clk 0:01:19.2]} 27. Rf8+ {[%clk 0:00:14.2]}
27... Ka7 {[%clk 0:01:18.7]} 28. Rcc8 {[%clk 0:00:12.5]} 28... Re1+ {[%clk
0:01:18.7]} 29. Rc1 {[%clk 0:00:13.1]} 29... Rxc1+ {[%clk 0:01:12.7]} 30. Kxc1
{[%clk 0:00:14]} 30... Rc5+ {[%clk 0:01:10.8]} 31. Kd1 {[%clk 0:00:08.9]} 31...
Rc2 {[%clk 0:01:10.1]} 32. Rf6 {[%clk 0:00:07.9]} 32... Rxb2 {[%clk 0:01:06.4]}
33. Rxh6 {[%clk 0:00:07.8]} 33... Rxg2 {[%clk 0:01:06.6]} 34. Rh5 {[%clk
0:00:08.4]} 34... d5 {[%clk 0:01:04.9]} 35. h4 {[%clk 0:00:07.6]} 35... gxh4
{[%clk 0:01:04.1]} 36. Rxh4 {[%clk 0:00:08.5]} 36... Rf2 {[%clk 0:01:02.9]} 37.
Rf4 {[%clk 0:00:08.9]} 37... Nc6 {[%clk 0:00:56.8]} 38. Ke1 {[%clk 0:00:08.8]}
38... Rb2 {[%clk 0:00:55.6]} 39. Rf7 {[%clk 0:00:09]} 39... Nd4 {[%clk
0:00:53.5]} 40. Bd7 {[%clk 0:00:06.5]} 40... Re2+ {[%clk 0:00:50.7]} 41. Kf1
{[%clk 0:00:06.3]} 41... Rc2 {[%clk 0:00:40.4]} 42. f4 {[%clk 0:00:06.6]} 42...
Rc7 {[%clk 0:00:40.5]} 43. f5 {[%clk 0:00:05.9]} 43... Nxf5 {[%clk 0:00:39.4]}
44. Rxf5 {[%clk 0:00:02.8]} 44... Rxd7 {[%clk 0:00:39.6]} 45. Ke2 {[%clk
0:00:03.4]} 45... b5 {[%clk 0:00:38.9]} 46. axb5 {[%clk 0:00:03]} 46... Kb6
{[%clk 0:00:39.8]} 47. Kd3 {[%clk 0:00:02.8]} 47... Kxb5 {[%clk 0:00:39.3]} 48.
Kd4 {[%clk 0:00:03.7]} 48... a4 {[%clk 0:00:39.5]} 49. Rf1 {[%clk 0:00:03.6]}
49... a3 {[%clk 0:00:39.6]} 50. Rb1+ {[%clk 0:00:04.1]} 50... Ka4 {[%clk
0:00:39.9]} 0-1

[Event "*** Titled Tuesday Blitz"]
[Site "Chess.com"]
[Date "2020.12.29"]
[Round "11"]
[White "Titus369"]
[Black "Ladislav1969"]
[Result "1-0"]
[WhiteElo "2547"]
[BlackElo "2408"]
[TimeControl "180+1"]
[EndTime "12:06:07 PST"]
[Termination "Titus369 won on time"]

1. e4 {[%clk 0:03:00.9]} 1... c5 {[%clk 0:03:00.1]} 2. Nf3 {[%clk 0:03:00.5]}
2... e6 {[%clk 0:03:01]} 3. d4 {[%clk 0:02:58.2]} 3... cxd4 {[%clk 0:03:01.9]}
4. Nxd4 {[%clk 0:02:58.2]} 4... a6 {[%clk 0:03:02.8]} 5. Nc3 {[%clk 0:02:57.7]}
5... b5 {[%clk 0:03:01.6]} 6. g3 {[%clk 0:02:56.1]} 6... Bb7 {[%clk 0:03:01.3]}
7. Bg2 {[%clk 0:02:55.5]} 7... Nf6 {[%clk 0:02:59.4]} 8. a3 {[%clk 0:02:53.9]}
8... Qc7 {[%clk 0:02:55.7]} 9. O-O {[%clk 0:02:53.4]} 9... Nc6 {[%clk 0:02:56]}
10. Be3 {[%clk 0:02:52.1]} 10... Ne5 {[%clk 0:02:42.9]} 11. Bf4 {[%clk 0:02:51]}
11... d6 {[%clk 0:02:39.8]} 12. Qe2 {[%clk 0:02:37.8]} 12... Be7 {[%clk
0:02:39.4]} 13. Rfd1 {[%clk 0:02:35.1]} 13... O-O {[%clk 0:02:35.7]} 14. h3
{[%clk 0:02:30]} 14... Nc4 {[%clk 0:02:35]} 15. Bc1 {[%clk 0:02:23.8]} 15...
Rfc8 {[%clk 0:02:09.1]} 16. g4 {[%clk 0:02:13.5]} 16... Nxa3 {[%clk 0:01:33.2]}
17. Rxa3 {[%clk 0:02:07.3]} 17... b4 {[%clk 0:01:33.6]} 18. Rb3 {[%clk
0:02:03.1]} 18... bxc3 {[%clk 0:01:33.3]} 19. Rxc3 {[%clk 0:02:03]} 19... Qb6
{[%clk 0:01:32.6]} 20. Rb3 {[%clk 0:02:01]} 20... Qc7 {[%clk 0:01:28.8]} 21.
Rxb7 {[%clk 0:01:58.9]} 21... Qxb7 {[%clk 0:01:27.3]} 22. e5 {[%clk 0:01:59.4]}
22... Nd5 {[%clk 0:01:24.3]} 23. exd6 {[%clk 0:01:55.6]} 23... Bf6 {[%clk
0:01:12.4]} 24. Nxe6 {[%clk 0:01:33.9]} 24... Rxc2 {[%clk 0:00:43.5]} 25. Qxc2
{[%clk 0:01:23.3]} 25... fxe6 {[%clk 0:00:43.4]} 26. Qe4 {[%clk 0:01:21.7]}
26... Qf7 {[%clk 0:00:31.3]} 27. Qxe6 {[%clk 0:01:12.2]} 27... Qxe6 {[%clk
0:00:29.9]} 28. Bxd5 {[%clk 0:01:11.2]} 28... Qxd5 {[%clk 0:00:28.8]} 29. Rxd5
{[%clk 0:01:12.1]} 29... Kf7 {[%clk 0:00:27]} 30. d7 {[%clk 0:01:09.6]} 30...
Ke6 {[%clk 0:00:26.6]} 31. Rd3 {[%clk 0:01:06.4]} 31... Rd8 {[%clk 0:00:23.6]}
32. g5 {[%clk 0:01:02.3]} 32... Be7 {[%clk 0:00:20.8]} 33. f4 {[%clk 0:01:02.5]}
33... Bc5+ {[%clk 0:00:16.9]} 34. Kg2 {[%clk 0:00:55.1]} 34... Rxd7 {[%clk
0:00:17.1]} 35. f5+ {[%clk 0:00:55.1]} 35... Ke7 {[%clk 0:00:16.7]} 36. Rxd7+
{[%clk 0:00:50.9]} 36... Kxd7 {[%clk 0:00:15.6]} 37. Kf3 {[%clk 0:00:51.6]}
37... Kd6 {[%clk 0:00:15.2]} 38. Ke4 {[%clk 0:00:52]} 38... Bf2 {[%clk
0:00:11.1]} 39. Bf4+ {[%clk 0:00:50.1]} 39... Ke7 {[%clk 0:00:11.3]} 40. Be5
{[%clk 0:00:51]} 40... g6 {[%clk 0:00:10.9]} 41. f6+ {[%clk 0:00:48.9]} 41...
Ke6 {[%clk 0:00:11.3]} 42. Bf4 {[%clk 0:00:48.9]} 42... Bc5 {[%clk 0:00:10.5]}
43. Be3 {[%clk 0:00:48.9]} 43... Bf8 {[%clk 0:00:09]} 44. Bd2 {[%clk 0:00:45.4]}
44... Bd6 {[%clk 0:00:05.4]} 45. b4 {[%clk 0:00:43.4]} 45... Bf8 {[%clk
0:00:04.8]} 46. Bc3 {[%clk 0:00:37.8]} 46... h6 {[%clk 0:00:03.6]} 47. h4 {[%clk
0:00:35.8]} 47... hxg5 {[%clk 0:00:03.9]} 48. hxg5 {[%clk 0:00:36.7]} 48... Bd6
{[%clk 0:00:04]} 49. Bd2 {[%clk 0:00:36.7]} 49... Bg3 {[%clk 0:00:04.1]} 50. Kd4
{[%clk 0:00:36.4]} 50... Bf2+ {[%clk 0:00:03.9]} 51. Be3 {[%clk 0:00:36]} 51...
Be1 {[%clk 0:00:02.8]} 52. Kc5 {[%clk 0:00:35.9]} 52... Kf7 {[%clk 0:00:02.3]}
53. Bf4 {[%clk 0:00:32.3]} 53... Ke6 {[%clk 0:00:02.6]} 54. Bd6 {[%clk
0:00:30.5]} 1-0

[Event "*** Titled Tuesday Blitz"]
[Site "Chess.com"]
[Date "2020.12.29"]
[Round "11"]
[White "SaraciNderim"]
[Black "Harry_Rakkel"]
[Result "0-1"]
[WhiteElo "2811"]
[BlackElo "2659"]
[TimeControl "180+1"]
[EndTime "12:06:10 PST"]
[Termination "Harry_Rakkel won by resignation"]

1. d4 {[%clk 0:02:59.1]} 1... Nf6 {[%clk 0:02:59.2]} 2. Nf3 {[%clk 0:02:57.7]}
2... e6 {[%clk 0:02:59.1]} 3. g3 {[%clk 0:02:57.6]} 3... d5 {[%clk 0:02:54.1]}
4. Bg2 {[%clk 0:02:57.3]} 4... b5 {[%clk 0:02:53.7]} 5. O-O {[%clk 0:02:56.9]}
5... Nbd7 {[%clk 0:02:51]} 6. a4 {[%clk 0:02:57]} 6... b4 {[%clk 0:02:50.3]} 7.
c4 {[%clk 0:02:57.3]} 7... c6 {[%clk 0:02:44.7]} 8. Nbd2 {[%clk 0:02:53.6]} 8...
a5 {[%clk 0:02:42.3]} 9. b3 {[%clk 0:02:53.6]} 9... Be7 {[%clk 0:02:41.8]} 10.
Bb2 {[%clk 0:02:53.2]} 10... O-O {[%clk 0:02:42.1]} 11. Rc1 {[%clk 0:02:53.4]}
11... Ba6 {[%clk 0:02:40.9]} 12. Re1 {[%clk 0:02:53.3]} 12... Rc8 {[%clk
0:02:40.3]} 13. e4 {[%clk 0:02:51.9]} 13... Qb6 {[%clk 0:02:34.6]} 14. exd5
{[%clk 0:02:44.5]} 14... cxd5 {[%clk 0:02:33.6]} 15. c5 {[%clk 0:02:44.1]} 15...
Qb7 {[%clk 0:02:21.1]} 16. Bf1 {[%clk 0:02:42.7]} 16... Nb8 {[%clk 0:02:07.3]}
17. Ne5 {[%clk 0:02:40.3]} 17... Bxf1 {[%clk 0:02:00.3]} 18. Kxf1 {[%clk
0:02:32.6]} 18... Nfd7 {[%clk 0:01:58]} 19. Ndf3 {[%clk 0:02:29]} 19... Nxe5
{[%clk 0:01:56.9]} 20. Nxe5 {[%clk 0:02:28.7]} 20... Nc6 {[%clk 0:01:51.3]} 21.
Nf3 {[%clk 0:02:18.7]} 21... Bf6 {[%clk 0:01:45.2]} 22. Qe2 {[%clk 0:02:17.8]}
22... g6 {[%clk 0:01:43.7]} 23. Rcd1 {[%clk 0:02:17.4]} 23... Bg7 {[%clk
0:01:42.3]} 24. Bc1 {[%clk 0:02:17.4]} 24... Rfe8 {[%clk 0:01:40]} 25. Bf4
{[%clk 0:02:14.1]} 25... f6 {[%clk 0:01:38.5]} 26. Bd6 {[%clk 0:02:13.8]} 26...
Qd7 {[%clk 0:01:37.7]} 27. Kg2 {[%clk 0:02:12.5]} 27... Bf8 {[%clk 0:01:35]} 28.
Bf4 {[%clk 0:02:11.3]} 28... g5 {[%clk 0:01:33.4]} 29. Be3 {[%clk 0:02:08.9]}
29... h6 {[%clk 0:01:31.6]} 30. h3 {[%clk 0:02:08.2]} 30... Bg7 {[%clk 0:01:30]}
31. Qd3 {[%clk 0:02:02.6]} 31... Rf8 {[%clk 0:01:26.3]} 32. Nh2 {[%clk
0:01:58.6]} 32... f5 {[%clk 0:01:20.2]} 33. f4 {[%clk 0:01:51.2]} 33... Bf6
{[%clk 0:01:14.9]} 34. Nf3 {[%clk 0:01:49.7]} 34... Qg7 {[%clk 0:01:10.6]} 35.
Qd2 {[%clk 0:01:45.9]} 35... g4 {[%clk 0:01:07]} 36. hxg4 {[%clk 0:01:45.4]}
36... Qxg4 {[%clk 0:01:06.5]} 37. Rh1 {[%clk 0:01:44.4]} 37... h5 {[%clk
0:01:03.2]} 38. Kf2 {[%clk 0:01:11.9]} 38... Rc7 {[%clk 0:01:01.5]} 39. Ng5
{[%clk 0:01:07.6]} 39... Bxg5 {[%clk 0:00:57.7]} 40. fxg5 {[%clk 0:01:08.5]}
40... f4 {[%clk 0:00:49.6]} 41. gxf4 {[%clk 0:00:49.5]} 41... Rcf7 {[%clk
0:00:48.4]} 42. Rdg1 {[%clk 0:00:43.2]} 42... Rxf4+ {[%clk 0:00:47.6]} 43. Ke1
{[%clk 0:00:41.2]} 43... Qf3 {[%clk 0:00:35.2]} 44. Rf1 {[%clk 0:00:20.5]} 44...
Qe4 {[%clk 0:00:33.6]} 45. Rfg1 {[%clk 0:00:05.9]} 45... Rf3 {[%clk 0:00:32.3]}
46. Ke2 {[%clk 0:00:06.2]} 46... Rxe3+ {[%clk 0:00:30.5]} 47. Qxe3 {[%clk
0:00:06]} 47... Nxd4+ {[%clk 0:00:30.2]} 48. Kd2 {[%clk 0:00:06.3]} 48... Qc2+
{[%clk 0:00:29.2]} 49. Ke1 {[%clk 0:00:06.3]} 49... Nf3+ {[%clk 0:00:28.7]} 50.
Qxf3 {[%clk 0:00:02.9]} 50... Rxf3 {[%clk 0:00:27.5]} 0-1

[Event "*** Titled Tuesday Blitz"]
[Site "Chess.com"]
[Date "2020.12.29"]
[Round "11"]
[White "Leo_C"]
[Black "alexgo05"]
[Result "1/2-1/2"]
[WhiteElo "2389"]
[BlackElo "2487"]
[TimeControl "180+1"]
[EndTime "12:06:11 PST"]
[Termination "Game drawn by repetition"]

1. d4 {[%clk 0:03:00.9]} 1... e6 {[%clk 0:02:59.6]} 2. c4 {[%clk 0:02:58.8]}
2... f5 {[%clk 0:02:59.6]} 3. Nc3 {[%clk 0:02:57.3]} 3... Nf6 {[%clk 0:03:00]}
4. e3 {[%clk 0:02:57.3]} 4... d5 {[%clk 0:03:00.3]} 5. Bd3 {[%clk 0:02:56.5]}
5... c6 {[%clk 0:02:59.4]} 6. Nge2 {[%clk 0:02:55.3]} 6... Bd6 {[%clk
0:02:59.3]} 7. O-O {[%clk 0:02:52.5]} 7... O-O {[%clk 0:02:59.3]} 8. f3 {[%clk
0:02:52.7]} 8... Nbd7 {[%clk 0:02:30.1]} 9. Bd2 {[%clk 0:02:51.9]} 9... Qe8
{[%clk 0:02:26.7]} 10. Qc2 {[%clk 0:02:29.3]} 10... Qh5 {[%clk 0:02:25.2]} 11.
Nf4 {[%clk 0:02:24.2]} 11... Qh6 {[%clk 0:02:08.9]} 12. cxd5 {[%clk 0:02:23.1]}
12... Nxd5 {[%clk 0:02:08.3]} 13. Ncxd5 {[%clk 0:02:10.4]} 13... cxd5 {[%clk
0:02:09.2]} 14. g3 {[%clk 0:02:04.2]} 14... Nb6 {[%clk 0:02:00.2]} 15. e4 {[%clk
0:01:56]} 15... g5 {[%clk 0:01:35.7]} 16. Ng2 {[%clk 0:01:31]} 16... f4 {[%clk
0:01:35.9]} 17. e5 {[%clk 0:01:26.1]} 17... Be7 {[%clk 0:01:33.8]} 18. gxf4
{[%clk 0:01:25.5]} 18... gxf4 {[%clk 0:01:34.3]} 19. Kh1 {[%clk 0:01:19.2]}
19... Kh8 {[%clk 0:01:25.3]} 20. Qc7 {[%clk 0:01:07.9]} 20... Bd7 {[%clk
0:01:00.4]} 21. Ba5 {[%clk 0:00:49.6]} 21... Rad8 {[%clk 0:00:15.8]} 22. Qxb7
{[%clk 0:00:39.5]} 22... Rg8 {[%clk 0:00:15.7]} 23. Qxa7 {[%clk 0:00:35.4]}
23... Rg5 {[%clk 0:00:10.7]} 24. Bxb6 {[%clk 0:00:21]} 24... Rdg8 {[%clk
0:00:09]} 25. Nxf4 {[%clk 0:00:14.5]} 25... Rg3 {[%clk 0:00:08.6]} 26. Qxd7
{[%clk 0:00:10]} 26... Bg5 {[%clk 0:00:08.3]} 27. Qxe6 {[%clk 0:00:08]} 27...
Qh4 {[%clk 0:00:03.4]} 28. Qf5 {[%clk 0:00:04.9]} 28... Bxf4 {[%clk 0:00:03.4]}
29. Qxh7+ {[%clk 0:00:04.6]} 29... Qxh7 {[%clk 0:00:03.4]} 30. Bxh7 {[%clk
0:00:05.4]} 30... Rh3 {[%clk 0:00:02.9]} 31. Bxg8 {[%clk 0:00:04.8]} 31... Rxh2+
{[%clk 0:00:03.3]} 32. Kg1 {[%clk 0:00:05.3]} 32... Rxb2 {[%clk 0:00:03.4]} 33.
Bxd5 {[%clk 0:00:04]} 33... Rxb6 {[%clk 0:00:03.2]} 34. Rf2 {[%clk 0:00:04]}
34... Be3 {[%clk 0:00:03.5]} 35. Kf1 {[%clk 0:00:04.4]} 35... Bxd4 {[%clk
0:00:03.2]} 36. Rd2 {[%clk 0:00:04.3]} 36... Bxa1 {[%clk 0:00:03.2]} 37. Be4
{[%clk 0:00:04.4]} 37... Bxe5 {[%clk 0:00:03.2]} 38. Ke2 {[%clk 0:00:05]} 38...
Kg7 {[%clk 0:00:01.8]} 39. a4 {[%clk 0:00:05.9]} 39... Kf6 {[%clk 0:00:02.1]}
40. a5 {[%clk 0:00:06.2]} 40... Ra6 {[%clk 0:00:02.5]} 41. Rd5 {[%clk
0:00:06.3]} 41... Bc3 {[%clk 0:00:03]} 42. Rb5 {[%clk 0:00:06.3]} 42... Rxa5
{[%clk 0:00:03.4]} 43. Rxa5 {[%clk 0:00:06.6]} 43... Bxa5 {[%clk 0:00:04.3]} 44.
Kd3 {[%clk 0:00:06.3]} 44... Bc7 {[%clk 0:00:05.2]} 45. Ke2 {[%clk 0:00:06.4]}
45... Be5 {[%clk 0:00:05.8]} 46. Kd3 {[%clk 0:00:07.3]} 46... Bd6 {[%clk
0:00:06.7]} 47. Ke2 {[%clk 0:00:07.4]} 47... Be5 {[%clk 0:00:07.6]} 48. Kd3
{[%clk 0:00:07.8]} 48... Bd6 {[%clk 0:00:08.5]} 49. Ke2 {[%clk 0:00:08.7]} 49...
Be5 {[%clk 0:00:09.4]} 1/2-1/2

[Event "*** Titled Tuesday Blitz"]
[Site "Chess.com"]
[Date "2020.12.29"]
[Round "11"]
[White "elamier"]
[Black "AliKa2810"]
[Result "0-1"]
[WhiteElo "2433"]
[BlackElo "2596"]
[TimeControl "180+1"]
[EndTime "12:06:12 PST"]
[Termination "AliKa2810 won on time"]

1. e4 {[%clk 0:03:00.9]} 1... c6 {[%clk 0:02:59.9]} 2. d4 {[%clk 0:02:59.5]}
2... d5 {[%clk 0:03:00.8]} 3. e5 {[%clk 0:02:59.7]} 3... Bf5 {[%clk 0:03:00.2]}
4. Nf3 {[%clk 0:03:00]} 4... e6 {[%clk 0:03:00.7]} 5. Be2 {[%clk 0:03:00.4]}
5... Ne7 {[%clk 0:03:01.3]} 6. O-O {[%clk 0:03:00]} 6... h6 {[%clk 0:03:00]} 7.
Nbd2 {[%clk 0:02:58.6]} 7... Nd7 {[%clk 0:02:57.3]} 8. Nb3 {[%clk 0:02:58.7]}
8... a6 {[%clk 0:02:56.8]} 9. a4 {[%clk 0:02:58.3]} 9... g5 {[%clk 0:02:54]} 10.
Ne1 {[%clk 0:02:57.2]} 10... f6 {[%clk 0:02:40.8]} 11. f4 {[%clk 0:02:54.2]}
11... gxf4 {[%clk 0:02:09.5]} 12. exf6 {[%clk 0:02:53.5]} 12... Nxf6 {[%clk
0:02:07]} 13. Bxf4 {[%clk 0:02:50.5]} 13... Ng6 {[%clk 0:02:02.9]} 14. Bh5
{[%clk 0:02:44.8]} 14... Ke7 {[%clk 0:01:46]} 15. Bxg6 {[%clk 0:02:36.7]} 15...
Bxg6 {[%clk 0:01:46.9]} 16. Be5 {[%clk 0:02:36.6]} 16... Bg7 {[%clk 0:01:46.7]}
17. Nc5 {[%clk 0:02:32.2]} 17... b6 {[%clk 0:01:37.9]} 18. Ncd3 {[%clk
0:02:03.9]} 18... Qd7 {[%clk 0:01:36.4]} 19. Nf3 {[%clk 0:02:01.9]} 19... Raf8
{[%clk 0:01:35]} 20. Nh4 {[%clk 0:01:42.1]} 20... Be4 {[%clk 0:01:30.8]} 21. Nf2
{[%clk 0:01:30.2]} 21... Bh7 {[%clk 0:01:15.8]} 22. Ng4 {[%clk 0:01:26.4]} 22...
Rhg8 {[%clk 0:00:35.8]} 23. Nxf6 {[%clk 0:01:07]} 23... Bxf6 {[%clk 0:00:36.1]}
24. Bxf6+ {[%clk 0:01:06.7]} 24... Rxf6 {[%clk 0:00:37]} 25. Rxf6 {[%clk
0:01:06.3]} 25... Kxf6 {[%clk 0:00:37.9]} 26. Qh5 {[%clk 0:01:03.3]} 26... Ke7
{[%clk 0:00:23.7]} 27. Qxh6 {[%clk 0:01:00.9]} 27... Kd8 {[%clk 0:00:23.9]} 28.
Rf1 {[%clk 0:00:49.4]} 28... Bxc2 {[%clk 0:00:17.5]} 29. Nf3 {[%clk 0:00:39.2]}
29... Be4 {[%clk 0:00:16.4]} 30. Rf2 {[%clk 0:00:27.9]} 30... Bxf3 {[%clk
0:00:12.2]} 31. Rxf3 {[%clk 0:00:27.6]} 31... c5 {[%clk 0:00:12.9]} 32. dxc5
{[%clk 0:00:23.2]} 32... bxc5 {[%clk 0:00:13]} 33. Qf4 {[%clk 0:00:21.9]} 33...
Kc8 {[%clk 0:00:11]} 34. Rb3 {[%clk 0:00:20.8]} 34... Qc7 {[%clk 0:00:09.7]} 35.
Qe3 {[%clk 0:00:12.5]} 35... Qd6 {[%clk 0:00:09.9]} 36. a5 {[%clk 0:00:07.9]}
36... d4 {[%clk 0:00:10.1]} 37. Qe4 {[%clk 0:00:06.4]} 37... Qd5 {[%clk
0:00:09.8]} 38. Qc2 {[%clk 0:00:02.7]} 38... Kc7 {[%clk 0:00:09]} 39. Rb6 {[%clk
0:00:01.9]} 39... d3 {[%clk 0:00:08.7]} 40. Qd2 {[%clk 0:00:02]} 40... Qd4+
{[%clk 0:00:08.4]} 41. Kf1 {[%clk 0:00:01.1]} 41... Rf8+ {[%clk 0:00:07.4]} 0-1